Workbook

Sheet Opening Values
B2: Opening Values
C4: £2012 | D4: Source | E4: 2005 | F4: 2006 | G4: =F4+1 -> 2007 | H4: =G4+1 -> 2008 | I4: 2009 | J4: 2010 | K4: 2011 | L4: 2012 | M4: 2013
B6: TRV Opening Value (£2012)
B7: DAV (Incl Retrospective Capex Adjustments) | M7: =DAV!L33 -> 83228235.39
B8: PAB determination | M8: =23967000*RPI_12 -> 30076478.28
B9: Opex adjustment MDR | J9: =-30511.8195439202*RPI_12*(1+7.5%*0.5)*(1+7.5%)^3 -> -49350.88121 | K9: =-150593.539357789*RPI_12*(1+7.5%*0.5)*(1+7.5%)^2 -> -226581.6218 | L9: =-274245.276434163*RPI_12*(1+7.5%*0.5)*(1+7.5%)^1 -> -383838.9409 | M9: =-305035.792518024*RPI_12*(1+7.5%*0.5)*(1+7.5%)^0 -> -397147.8482
B10: Opex Adjustment OAV & PCR02 Retro Opex Adj | I10: =E18+'Retrospective mechanism'!H8 -> 2770816.706 | J10: ='Retrospective mechanism'!I8 -> 599010.3152 | K10: ='Retrospective mechanism'!J8 -> 1479134.51 | L10: ='Retrospective mechanism'!K8 -> 1962982.19 | M10: ='Retrospective mechanism'!L8 -> 1714988.359
B11: Adjusted PAB | M11: =SUM(I8:M10) -> 37546491.07
B12: Actual Depreciation | I12: =DAV!H27 -> 1630500.227 | J12: =DAV!I27 -> 1947695.895 | K12: =DAV!J27 -> 2203584.721 | L12: =DAV!K27 -> 2612872.601 | M12: =DAV!L27 -> 2777246.764
B13: Determined Depreciation | I13: =-1347007.90738161*RPI_12 -> -1690376.521 | J13: =-1651207.67477839*RPI_12 -> -2072120.489 | K13: =-1869106.44307223*RPI_12 -> -2345564.29 | L13: =-2009279.13971871*RPI_12 -> -2521468.703 | M13: =-2176715.87141297*RPI_12 -> -2731587.084
B14: DAB Adjustment | M14: =SUM(I12:M13) -> -189216.8798
B15: Opening TRV Value | M15: =SUM(M7,M11,M14) -> 120585509.6
B18: Opening Asset Value | C18: Opex | D18: PI's model V7 | E18: =2427309.37423238*RPI_12 -> 3046059.902
C19: Mains | D19: PI's model V7 | E19: =1394416.11040308*RPI_12 -> 1749869.648
C20: Other Capex | D20: PI's model V7 | E20: =339489*RPI_12 -> 426028.8537
C21: Total OAV | E21: =SUM(E18:E20) -> 5221958.404

Sheet Retrospective mechanism
A1: =242.7/193.4 -> 1.254912099 | B1: Y | C1: N
A2: RETROSPECTIVE ADJUSTMENTS UPDATE BY FORMULA YEAR (£2012)
H3: 2009 | I3: =H3+1 -> 2010 | J3: =I3+1 -> 2011 | K3: 2012 | L3: 2013 | M3: TOTAL
A4: Retrospective Adjustment Categories | H4: Actual | I4: Actual | J4: Actual | K4: Actual | L4: Forecast | M4: Actual/Forecast
A5: Capex 40 Yr Life | H5: -2664919.341 | I5: -3369293.417 | J5: 1435272.852 | K5: 4821142.321 | L5: 2158215.585 | M5: =SUM(H5:L5) -> 2380418 | N5: =SUM(H5:K5) -> 222202.4147
A6: Capex 15 Yr Life | H6: 152976.5273 | I6: 295260.5279 | J6: 665935.0258 | K6: 893259.9124 | L6: 747802.6639 | M6: =SUM(H6:L6) -> 2755234.657 | N6: =SUM(H6:K6) -> 2007431.993
A7: Capex 5 Yr Life | H7: 0 | I7: 0 | J7: -752295.2935 | K7: 0 | L7: 0 | M7: -752295.2935 | N7: -752295.2935
A8: Opex | H8: -275243.1965 | I8: 599010.3152 | J8: 1479134.51 | K8: 1962982.19 | L8: 1714988.359 | M8: =SUM(H8:L8) -> 5480872.177 | N8: 3765883.819
A9: Total Retrospective Adjustments | H9: =SUM(H5:H8) -> -2787186.01 | I9: =SUM(I5:I8) -> -2475022.574 | J9: 2828047.094 | K9: 7677384.423 | L9: 4621006.608 | M9: 9864229.541 | N9: 5243222.933
A11: N.B. for GD14 this will only account for ACTUAL adjustments up to t = 2012, 2013 has been Provisionally adjusted for in this Price Control
A12: As per Final Document Paragraph 10.8:
A13: http://www.uregni.gov.uk/uploads/publications/2013-12-20_GD14_Price_Control_for_NI_GDNs_2014-2016_Final_Determination.pdf

Sheet DAV
A1: Condition 2.3.17 Calculation of DAV
O5: IMPORTANT NOTE: Total Capex and Breakdown from 2017 Onwards are forecasts and will be determined as part of the Next Price Control.
D6: £2012 | E6: 2006 | F6: =E6+1 -> 2007 | G6: =F6+1 -> 2008 | H6: 2009 | I6: 2010 | J6: 2011 | K6: 2012 | L6: 2013 | M6: 2014 | N6: 2015 | O6: 2016 | P6: 2017 | Q6: 2018 | R6: 2019 | S6: 2020 | T6: 2021 | U6: 2022 | V6: 2023 | W6: 2024 | X6: 2025 | Y6: 2026 | Z6: 2027 | AA6: 2028 | AB6: 2029 | AC6: 2030 | AD6: 2031 | AE6: 2032 | AF6: 2033 | AG6: 2034 | AH6: 2035
A8: Annual Capex
A9: Mains | E9: 8687760.948 | F9: 11356006.98 | G9: 8854334.315 | H9: 11093981.87 | I9: 10818463.34 | J9: 7649267.479 | K9: 6031966.952 | L9: 5073387.242 | M9: 7693260.32 | N9: 6098827.552 | O9: 5475313.856 | P9: 5095363.258 | Q9: 4580368.754 | R9: 3307875.92 | S9: 3307394.641 | T9: 3296922.817 | U9: 1668764.983 | V9: 1639499.946 | W9: 1086516.59 | X9: 1096993.337 | Y9: 1092652.903 | Z9: 1092808.743 | AA9: 990449.767 | AB9: 965855.6908 | AC9: 966556.7362 | AD9: 967751.5043 | AE9: 968233.6852 | AF9: 968052.8856 | AG9: 969936.2533 | AH9: 969936.2533
A10: Services | E10: 367508.5669 | F10: 658713.2212 | G10: 1590897.043 | H10: -597651.9745 | I10: -1244444.816 | J10: 3466727.839 | K10: 6687401.376 | L10: 3905971.203 | M10: 2712128 | N10: 2651954 | O10: 2453680 | P10: 2338559.365 | Q10: 2350703.129 | R10: 1992203.754 | S10: 1991913.898 | T10: 1985607.13 | U10: 1518042.405 | V10: 1491420.582 | W10: 1436865.05 | X10: 1450720.035 | Y10: 1444980.024 | Z10: 1445186.115 | AA10: 1449875.274 | AB10: 1447894.776 | AC10: 1448945.699 | AD10: 1450736.752 | AE10: 1451459.579 | AF10: 1451188.546 | AG10: 1454011.865 | AH10: 1454011.865
A11: Meters, telemtry | E11: 459854.054 | F11: 860162.4852 | G11: 1823271.825 | H11: 932919.7259 | I11: 1001870.467 | J11: 1300118.989 | K11: 1412680.692 | L11: 1196311.839 | M11: 1053354 | N11: 1003990 | O11: 900819 | P11: 857720.1581 | Q11: 862541.3494 | R11: 710490.5382 | S11: 710378.1961 | T11: 841613.6402 | U11: 813242.1984 | V11: 977843.4959 | W11: 1026407.584 | X11: 1079019.713 | Y11: 1403401.879 | Z11: 1442883.283 | AA11: 1546735.786 | AB11: 1485051.064 | AC11: 1454870.545 | AD11: 1378186.703 | AE11: 1331663.1 | AF11: 1331391.956 | AG11: 1203713.462 | AH11: 1203713.462
A12: Other Capex | E12: 393014.6262 | F12: 68544.55377 | G12: 752947.2596 | H12: 55827.47941 | I12: 55269.20461 | J12: -150413.6553 | K12: 54169.34744 | L12: 53627.65397 | M12: 122000 | N12: 22000 | O12: 21000 | P12: 21000 | Q12: 21000 | R12: 21000 | S12: 21000 | T12: 21000 | U12: 21000 | V12: 21000 | W12: 21000 | X12: 21000 | Y12: 21000 | Z12: 21000 | AA12: 21000 | AB12: 21000 | AC12: 21000 | AD12: 21000 | AE12: 21000 | AF12: 21000 | AG12: 21000 | AH12: 21000
A13: Total capex | E13: =SUM(E9:E12) -> 9908138.195 | F13: 12943427.24 | G13: 13021450.44 | H13: 11485077.1 | I13: 10631158.19 | J13: 12265700.65 | K13: 14186218.37 | L13: 10229297.94 | M13: 11580742.32 | N13: 9776771.552 | O13: 8850812.856 | P13: 8312642.781 | Q13: 7814613.232 | R13: 6031570.212 | S13: 6030686.735 | T13: 6145143.587 | U13: 4021049.587 | V13: 4129764.024 | W13: 3570789.224 | X13: 3647733.086 | Y13: 3962034.806 | Z13: 4001878.141 | AA13: 4008060.826 | AB13: 3919801.531 | AC13: 3891372.98 | AD13: 3817674.959 | AE13: 3772356.365 | AF13: 3771633.388 | AG13: 3648661.58 | AH13: 3648661.58
A17: Opening DAV (Capex Only) | C17: ='Opening Values'!C19 -> Mains | D17: ='Opening Values'!E19 -> 1749869.648
C18: ='Opening Values'!C20 -> Other Capex | D18: ='Opening Values'!E20 -> 426028.8537
D19: =SUM(D16:D18) -> 2175898.502
A21: Depreciation | C21: Useful Life
A22: Opening DAV | C22: 40 | E22: =(($D$17+$D$18)/$C$22) -> 54397.46255 | F22: 54397.46255 | G22: 54397.46255 | H22: 54397.46255 | I22: 54397.46255 | J22: 54397.46255 | K22: 54397.46255 | L22: 54397.46255 | M22: 54397.46255 | N22: 54397.46255 | O22: 54397.46255 | P22: 54397.46255 | Q22: 54397.46255 | R22: 54397.46255 | S22: 54397.46255 | T22: 54397.46255 | U22: 54397.46255 | V22: 54397.46255 | W22: 54397.46255 | X22: 54397.46255 | Y22: 54397.46255 | Z22: 54397.46255 | AA22: 54397.46255 | AB22: 54397.46255 | AC22: 54397.46255 | AD22: 54397.46255 | AE22: 54397.46255 | AF22: 54397.46255 | AG22: 54397.46255 | AH22: 54397.46255
A23: =A9 -> Mains | C23: 40 | E23: =(SUM($D$9:E9)/$C$23) -> 217194.0237 | F23: =(SUM($D$9:F9)/$C$23) -> 501094.1983 | G23: =(SUM($D$9:G9)/$C$23) -> 722452.5562 | H23: =(SUM($D$9:H9)/$C$23) -> 999802.103 | I23: =(SUM($D$9:I9)/$C$23) -> 1270263.686 | J23: =(SUM($D$9:J9)/$C$23) -> 1461495.373 | K23: =(SUM($D$9:K9)/$C$23) -> 1612294.547 | L23: =(SUM($D$9:L9)/$C$23) -> 1739129.228 | M23: =(SUM($D$9:M9)/$C$23) -> 1931460.736 | N23: =(SUM($D$9:N9)/$C$23) -> 2083931.425 | O23: =(SUM($D$9:O9)/$C$23) -> 2220814.271 | P23: =(SUM($D$9:P9)/$C$23) -> 2348198.353 | Q23: =(SUM($D$9:Q9)/$C$23) -> 2462707.572 | R23: =(SUM($D$9:R9)/$C$23) -> 2545404.47 | S23: =(SUM($D$9:S9)/$C$23) -> 2628089.336 | T23: =(SUM($D$9:T9)/$C$23) -> 2710512.406 | U23: =(SUM($D$9:U9)/$C$23) -> 2752231.531 | V23: =(SUM($D$9:V9)/$C$23) -> 2793219.029 | W23: =(SUM($D$9:W9)/$C$23) -> 2820381.944 | X23: =(SUM($D$9:X9)/$C$23) -> 2847806.778 | Y23: =(SUM($D$9:Y9)/$C$23) -> 2875123.1 | Z23: =(SUM($D$9:Z9)/$C$23) -> 2902443.319 | AA23: =(SUM($D$9:AA9)/$C$23) -> 2927204.563 | AB23: =(SUM($D$9:AB9)/$C$23) -> 2951350.955 | AC23: =(SUM($D$9:AC9)/$C$23) -> 2975514.874 | AD23: =(SUM($D$9:AD9)/$C$23) -> 2999708.661 | AE23: =(SUM($D$9:AE9)/$C$23) -> 3023914.503 | AF23: =(SUM($D$9:AF9)/$C$23) -> 3048115.825 | AG23: =(SUM($D$9:AG9)/$C$23) -> 3072364.232 | AH23: =(SUM($D$9:AH9)/$C$23) -> 3096612.638
A24: =A10 -> Services | C24: 40 | E24: =SUM($D$10:E10)/$C$24 -> 9187.714172 | F24: =SUM($D$10:F10)/$C$24 -> 25655.5447 | G24: =SUM($D$10:G10)/$C$24 -> 65427.97079 | H24: =SUM($D$10:H10)/$C$24 -> 50486.67143 | I24: =SUM($D$10:I10)/$C$24 -> 19375.55103 | J24: =SUM($D$10:J10)/$C$24 -> 106043.747 | K24: =SUM($D$10:K10)/$C$24 -> 273228.7814 | L24: =SUM($D$10:L10)/$C$24 -> 370878.0615 | M24: =SUM($D$10:M10)/$C$24 -> 438681.2615 | N24: =SUM($D$10:N10)/$C$24 -> 504980.1115 | O24: =SUM($D$10:O10)/$C$24 -> 566322.1115 | P24: =SUM($D$10:P10)/$C$24 -> 624786.0956 | Q24: =SUM($D$10:Q10)/$C$24 -> 683553.6739 | R24: =SUM($D$10:R10)/$C$24 -> 733358.7677 | S24: =SUM($D$10:S10)/$C$24 -> 783156.6152 | T24: =SUM($D$10:T10)/$C$24 -> 832796.7934 | U24: =SUM($D$10:U10)/$C$24 -> 870747.8535 | V24: =SUM($D$10:V10)/$C$24 -> 908033.3681 | W24: =SUM($D$10:W10)/$C$24 -> 943954.9943 | X24: =SUM($D$10:X10)/$C$24 -> 980222.9952 | Y24: =SUM($D$10:Y10)/$C$24 -> 1016347.496 | Z24: =SUM($D$10:Z10)/$C$24 -> 1052477.149 | AA24: =SUM($D$10:AA10)/$C$24 -> 1088724.031 | AB24: =SUM($D$10:AB10)/$C$24 -> 1124921.4 | AC24: =SUM($D$10:AC10)/$C$24 -> 1161145.042 | AD24: =SUM($D$10:AD10)/$C$24 -> 1197413.461 | AE24: =SUM($D$10:AE10)/$C$24 -> 1233699.951 | AF24: =SUM($D$10:AF10)/$C$24 -> 1269979.664 | AG24: =SUM($D$10:AG10)/$C$24 -> 1306329.961 | AH24: =SUM($D$10:AH10)/$C$24 -> 1342680.258
A25: Meters, telemtry | C25: 15 | E25: =SUM($E$11:E11)/$C$25 -> 30656.93694 | F25: =SUM($E$11:F11)/$C$25 -> 88001.10262 | G25: =SUM($E$11:G11)/$C$25 -> 209552.5576 | H25: =SUM($E$11:H11)/$C$25 -> 271747.206 | I25: =SUM($E$11:I11)/$C$25 -> 338538.5705 | J25: =SUM($E$11:J11)/$C$25 -> 425213.1698 | K25: =SUM($E$11:K11)/$C$25 -> 519391.8826 | L25: =SUM($E$11:L11)/$C$25 -> 599146.0052 | M25: =SUM($E$11:M11)/$C$25 -> 669369.6052 | N25: =SUM($E$11:N11)/$C$25 -> 736302.2719 | O25: =SUM($E$11:O11)/$C$25 -> 796356.8719 | P25: =SUM($E$11:P11)/$C$25 -> 853538.2158 | Q25: =SUM($E$11:Q11)/$C$25 -> 911040.9724 | R25: =SUM($E$11:R11)/$C$25 -> 958407.0083 | S25: =SUM(E11:S11)/$C$25 -> 1005765.555 | T25: 1031216.194 | U25: 1028088.175 | V25: 971726.286 | W25: 977958.8099 | X25: 983102.093 | Y25: 989987.6189 | Z25: 992001.125 | AA25: 1015362.721 | AB25: 1044142.526 | AC25: 1074201.229 | AD25: 1106025.742 | AE25: 1137621.938 | AF25: 1168878.645 | AG25: 1201760.174 | AH25: 1234649.191
A26: Other Capex | C26: 5 | E26: =SUM($E$12:E12)/$C$26 -> 78602.92523 | F26: =SUM($E$12:F12)/$C$26 -> 92311.83599 | G26: =SUM($E$12:G12)/$C$26 -> 242901.2879 | H26: =SUM($E$12:H12)/$C$26 -> 254066.7838 | I26: =SUM(E12:I12)/$C$26 -> 265120.6247 | J26: 156434.9684 | K26: 153559.9272 | L26: 13696.00603 | M26: 26930.51015 | N26: 20276.66923 | O26: 54559.40028 | P26: 47925.53079 | Q26: 41400 | R26: 21200 | S26: 21000 | T26: 21000 | U26: 21000 | V26: 21000 | W26: 21000 | X26: 21000 | Y26: 21000 | Z26: 21000 | AA26: 21000 | AB26: 21000 | AC26: 21000 | AD26: 21000 | AE26: 21000 | AF26: 21000 | AG26: 21000 | AH26: 21000
A27: Total depreciation | E27: =SUM(E22:E26) -> 390039.0626 | F27: =SUM(F22:F26) -> 761460.1442 | G27: =SUM(G22:G26) -> 1294731.835 | H27: =SUM(H22:H26) -> 1630500.227 | I27: 1947695.895 | J27: 2203584.721 | K27: 2612872.601 | L27: 2777246.764 | M27: =SUM(M22:M26) -> 3120839.576 | N27: 3399887.94 | O27: 3692450.118 | P27: 3928845.658 | Q27: 4153099.681 | R27: 4312767.708 | S27: 4492408.968 | T27: 4649922.856 | U27: 4726465.021 | V27: 4748376.146 | W27: 4817693.211 | X27: 4886529.328 | Y27: 4956855.677 | Z27: 5022319.055 | AA27: 5106688.777 | AB27: 5195812.343 | AC27: 5286258.607 | AD27: 5378545.327 | AE27: 5470633.855 | AF27: 5562371.598 | AG27: 5655851.829 | AH27: 5749339.55
A29: DAV
A30: Opening balance | E30: =D33 -> 2175898.502 | F30: =E33 -> 11693997.63 | G30: 23875964.73 | H30: 35602683.34 | I30: 45457260.22 | J30: 54140722.52 | K30: 64202838.45 | L30: 75776184.22 | M30: 83228235.39 | N30: 91688138.13 | O30: 98065021.75 | P30: 103223384.5 | Q30: 107607181.6 | R30: 111268695.2 | S30: 112987497.7 | T30: 114525775.4 | U30: 116020996.2 | V30: 115315580.7 | W30: 114696968.6 | X30: 113450064.6 | Y30: 112211268.4 | Z30: 111216447.5 | AA30: 110196006.6 | AB30: 109097378.6 | AC30: 107821367.8 | AD30: 106426482.2 | AE30: 104865611.8 | AF30: 103167334.3 | AG30: 101376596.1 | AH30: 99369405.88
A31: Capex | E31: =E13 -> 9908138.195 | F31: =F13 -> 12943427.24 | G31: =G13 -> 13021450.44 | H31: 11485077.1 | I31: 10631158.19 | J31: 12265700.65 | K31: 14186218.37 | L31: =L13 -> 10229297.94 | M31: 11580742.32 | N31: 9776771.552 | O31: 8850812.856 | P31: 8312642.781 | Q31: 7814613.232 | R31: 6031570.212 | S31: 6030686.735 | T31: 6145143.587 | U31: 4021049.587 | V31: 4129764.024 | W31: 3570789.224 | X31: 3647733.086 | Y31: 3962034.806 | Z31: 4001878.141 | AA31: 4008060.826 | AB31: 3919801.531 | AC31: 3891372.98 | AD31: 3817674.959 | AE31: 3772356.365 | AF31: 3771633.388 | AG31: 3648661.58 | AH31: 3648661.58
A32: Depreciation | E32: =-E27 -> -390039.0626 | F32: =-F27 -> -761460.1442 | G32: =-G27 -> -1294731.835 | H32: -1630500.227 | I32: -1947695.895 | J32: -2203584.721 | K32: -2612872.601 | L32: =-L27 -> -2777246.764 | M32: =-M27 -> -3120839.576 | N32: -3399887.94 | O32: -3692450.118 | P32: -3928845.658 | Q32: -4153099.681 | R32: -4312767.708 | S32: -4492408.968 | T32: -4649922.856 | U32: -4726465.021 | V32: -4748376.146 | W32: -4817693.211 | X32: -4886529.328 | Y32: -4956855.677 | Z32: -5022319.055 | AA32: -5106688.777 | AB32: -5195812.343 | AC32: -5286258.607 | AD32: -5378545.327 | AE32: -5470633.855 | AF32: -5562371.598 | AG32: -5655851.829 | AH32: -5749339.55
A33: Closing balance | D33: =D19 -> 2175898.502 | E33: =SUM(E30:E32) -> 11693997.63 | F33: 23875964.73 | G33: 35602683.34 | H33: 45457260.22 | I33: 54140722.52 | J33: 64202838.45 | K33: 75776184.22 | L33: 83228235.39 | M33: =SUM(M30:M32) -> 91688138.13 | N33: 98065021.75 | O33: 103223384.5 | P33: 107607181.6 | Q33: 111268695.2 | R33: 112987497.7 | S33: 114525775.4 | T33: 116020996.2 | U33: 115315580.7 | V33: 114696968.6 | W33: 113450064.6 | X33: 112211268.4 | Y33: 111216447.5 | Z33: 110196006.6 | AA33: 109097378.6 | AB33: 107821367.8 | AC33: 106426482.2 | AD33: 104865611.8 | AE33: 103167334.3 | AF33: 101376596.1 | AG33: 99369405.88 | AH33: 97268727.91

Sheet Pi's Calc
A1: =242.7/193.4 -> 1.254912099
A2: Firmus Energy P Tariff Model - Calculation of Pi tariffs, Allowed Revenues, PA and TRV | D2: Return
D3: To 2016 | E3: 0.075
B4: £2012 | D4: Post 2016 | E4: 0.0483
B5: £'000
A6: Real Return pa | D6: =E3 -> 0.075 | E6: =D6 -> 0.075 | F6: =E6 -> 0.075 | G6: =E4 -> 0.0483 | H6: =G6 -> 0.0483 | I6: =H6 -> 0.0483 | J6: 0.0483 | K6: 0.0483 | L6: 0.0483 | M6: 0.0483 | N6: 0.0483 | O6: 0.0483 | P6: 0.0483 | Q6: 0.0483 | R6: 0.0483 | S6: 0.0483 | T6: 0.0483 | U6: 0.0483 | V6: 0.0483 | W6: 0.0483 | X6: 0.0483 | Y6: 0.0483
A7: Discount Factor (Mid Yr) | B7: 0.5 | C7: 1 | D7: =D8*(1+D6*$B$7) -> 0.9651162791 | E7: =E8*(1+E6*$B$7) -> 0.8977825852 | F7: 0.8351465909 | G7: 0.7864164526 | H7: 0.7501826315 | I7: 0.7156182691 | J7: 0.6826464458 | K7: 0.6511937859 | L7: 0.6211902947 | M7: 0.5925692022 | N7: 0.565266815 | O7: 0.5392223744 | P7: 0.5143779208 | Q7: 0.4906781654 | R7: 0.4680703667 | S7: 0.4465042132 | T7: 0.4259317115 | U7: 0.4063070796 | V7: 0.3875866446 | W7: 0.3697287462 | X7: 0.3526936432 | Y7: 0.3364434258
A8: Discount Factor (Yr End) | C8: 1 | D8: =C8/(1+D6) -> 0.9302325581 | E8: =D8/(1+E6) -> 0.8653326122 | F8: 0.8049605695 | G8: 0.7678723357 | H8: 0.7324929273 | I8: 0.6987436109 | J8: 0.6665492806 | K8: 0.6358382912 | L8: 0.6065422982 | M8: 0.5785961062 | N8: 0.5519375238 | O8: 0.5265072249 | P8: 0.5022486167 | Q8: 0.4791077141 | R8: 0.4570330193 | S8: 0.4359754071 | T8: 0.4158880159 | U8: 0.3967261432 | V8: 0.3784471461 | W8: 0.3610103463 | X8: 0.3443769401 | Y8: 0.3285099114
G11: IMPORTANT NOTE: Values from 2017 Onwards are forecasts and will be determined as part of the Next Price Control. This Model is re-run at each Price Control Period, to calculate allowed Revenues.
C12: 2013 | D12: 2014 | E12: =D12+1 -> 2015 | F12: 2016 | G12: 2017 | H12: 2018 | I12: 2019 | J12: 2020 | K12: 2021 | L12: 2022 | M12: 2023 | N12: 2024 | O12: 2025 | P12: 2026 | Q12: 2027 | R12: 2028 | S12: 2029 | T12: 2030 | U12: 2031 | V12: 2032 | W12: 2033 | X12: 2034 | Y12: =X12+1 -> 2035
A14: Capex | D14: 11580.74232 | E14: 9776.771552 | F14: 8850.812856 | G14: 8312.642781 | H14: 7814.613232 | I14: 6031.570212 | J14: 6030.686735 | K14: 6145.143587 | L14: 4021.049587 | M14: 4129.764024 | N14: 3570.789224 | O14: 3647.733086 | P14: 3962.034806 | Q14: 4001.878141 | R14: 4008.060826 | S14: 3919.801531 | T14: 3891.37298 | U14: 3817.674959 | V14: 3772.356365 | W14: 3771.633388 | X14: 3648.66158 | Y14: 3648.66158
A15: Opex | D15: 5371.037659 | E15: 5566.005915 | F15: 5819.377777 | G15: 5676.650746 | H15: 5889.910632 | I15: 6195.578654 | J15: 6331.963026 | K15: 6608.523677 | L15: 6716.846039 | M15: 6852.99101 | N15: 7120.458372 | O15: 7229.295529 | P15: 7302.561743 | Q15: 7396.619093 | R15: 7494.751754 | S15: 7521.876215 | T15: 7628.775805 | U15: 7739.78396 | V15: 7738.792456 | W15: 7833.774214 | X15: 7943.750947 | Y15: 8046.453981
A16: Volumes (therms '000) | D16: 58570.38679 | E16: 60909.45252 | F16: 62955.21483 | G16: 63206.79148 | H16: 63460.8839 | I16: 63717.51725 | J16: 63976.71692 | K16: 64238.5086 | L16: 64502.91819 | M16: 64649.62614 | N16: 64797.80117 | O16: 64947.45795 | P16: 65098.6113 | Q16: 65251.27619 | R16: 65405.46772 | S16: 65561.20117 | T16: 65718.49195 | U16: 65877.35564 | V16: 66037.80797 | W16: 66199.86482 | X16: 66363.54223 | Y16: 66528.85643
A17: £/therm
A18: P Dom (P1) | D18: 0.448441836 | E18: =D18 -> 0.448441836 | F18: =E18 -> 0.448441836 | G18: 0.448441836 | H18: 0.448441836 | I18: 0.448441836 | J18: 0.448441836 | K18: 0.448441836 | L18: 0.448441836 | M18: 0.448441836 | N18: 0.448441836 | O18: 0.448441836 | P18: 0.448441836 | Q18: 0.448441836 | R18: 0.448441836 | S18: 0.448441836 | T18: 0.448441836 | U18: 0.448441836 | V18: 0.448441836 | W18: 0.448441836 | X18: 0.448441836 | Y18: 0.448441836
A19: P SME (P2 + P3) | C19: 0.6813431126 | D19: =$D$18*C19 -> 0.3055427563 | E19: =D19 -> 0.3055427563 | F19: 0.3055427563 | G19: 0.3055427563 | H19: 0.3055427563 | I19: 0.3055427563 | J19: 0.3055427563 | K19: 0.3055427563 | L19: 0.3055427563 | M19: 0.3055427563 | N19: 0.3055427563 | O19: 0.3055427563 | P19: 0.3055427563 | Q19: 0.3055427563 | R19: 0.3055427563 | S19: 0.3055427563 | T19: 0.3055427563 | U19: 0.3055427563 | V19: 0.3055427563 | W19: 0.3055427563 | X19: 0.3055427563 | Y19: 0.3055427563
A20: P Contract (P4, P5 + P6) | C20: 0.5900817098 | D20: =$D$18*C20 -> 0.2646173253 | E20: 0.2646173253 | F20: 0.2646173253 | G20: 0.2646173253 | H20: 0.2646173253 | I20: 0.2646173253 | J20: 0.2646173253 | K20: 0.2646173253 | L20: 0.2646173253 | M20: 0.2646173253 | N20: 0.2646173253 | O20: 0.2646173253 | P20: 0.2646173253 | Q20: 0.2646173253 | R20: 0.2646173253 | S20: 0.2646173253 | T20: 0.2646173253 | U20: 0.2646173253 | V20: 0.2646173253 | W20: 0.2646173253 | X20: 0.2646173253 | Y20: 0.2646173253
A22: Conditions 4.6 and 4.6.6 Establishing Best Available Revenue Per Unit and Calculating Cashflow
A24: Allowed Revenue | D24: =SUMPRODUCT(D18:D20,[4]Volumes!C5:C7)/1000 -> 17525.94453 | E24: =SUMPRODUCT(E18:E20,[4]Volumes!D5:D7)/1000 -> 18464.65412 | F24: =SUMPRODUCT(F18:F20,[4]Volumes!E5:E7)/1000 -> 19308.69182 | G24: =SUMPRODUCT(G18:G20,[4]Volumes!F5:F7)/1000 -> 19401.75987 | H24: =SUMPRODUCT(H18:H20,[4]Volumes!G5:G7)/1000 -> 19495.7586 | I24: =SUMPRODUCT(I18:I20,[4]Volumes!H5:H7)/1000 -> 19590.69732 | J24: =SUMPRODUCT(J18:J20,[4]Volumes!I5:I7)/1000 -> 19686.58543 | K24: =SUMPRODUCT(K18:K20,[4]Volumes!J5:J7)/1000 -> 19783.43242 | L24: =SUMPRODUCT(L18:L20,[4]Volumes!K5:K7)/1000 -> 19881.24788 | M24: =SUMPRODUCT(M18:M20,[4]Volumes!L5:L7)/1000 -> 19926.07343 | N24: =SUMPRODUCT(N18:N20,[4]Volumes!M5:M7)/1000 -> 19971.34724 | O24: =SUMPRODUCT(O18:O20,[4]Volumes!N5:N7)/1000 -> 20017.07379 | P24: =SUMPRODUCT(P18:P20,[4]Volumes!O5:O7)/1000 -> 20063.2576 | Q24: =SUMPRODUCT(Q18:Q20,[4]Volumes!P5:P7)/1000 -> 20109.90325 | R24: =SUMPRODUCT(R18:R20,[4]Volumes!Q5:Q7)/1000 -> 20157.01535 | S24: =SUMPRODUCT(S18:S20,[4]Volumes!R5:R7)/1000 -> 20204.59858 | T24: =SUMPRODUCT(T18:T20,[4]Volumes!S5:S7)/1000 -> 20252.65764 | U24: =SUMPRODUCT(U18:U20,[4]Volumes!T5:T7)/1000 -> 20301.19729 | V24: =SUMPRODUCT(V18:V20,[4]Volumes!U5:U7)/1000 -> 20350.22234 | W24: =SUMPRODUCT(W18:W20,[4]Volumes!V5:V7)/1000 -> 20399.73763 | X24: =SUMPRODUCT(X18:X20,[4]Volumes!W5:W7)/1000 -> 20449.74808 | Y24: =SUMPRODUCT(Y18:Y20,[4]Volumes!X5:X7)/1000 -> 20500.25864
A25: Capex | D25: =-D14 -> -11580.74232 | E25: =-E14 -> -9776.771552 | F25: -8850.812856 | G25: -8312.642781 | H25: -7814.613232 | I25: -6031.570212 | J25: -6030.686735 | K25: -6145.143587 | L25: -4021.049587 | M25: -4129.764024 | N25: -3570.789224 | O25: -3647.733086 | P25: -3962.034806 | Q25: -4001.878141 | R25: -4008.060826 | S25: -3919.801531 | T25: -3891.37298 | U25: -3817.674959 | V25: -3772.356365 | W25: -3771.633388 | X25: -3648.66158 | Y25: -3648.66158
A26: Opex | D26: =-D15 -> -5371.037659 | E26: =-E15 -> -5566.005915 | F26: -5819.377777 | G26: -5676.650746 | H26: -5889.910632 | I26: -6195.578654 | J26: -6331.963026 | K26: -6608.523677 | L26: -6716.846039 | M26: -6852.99101 | N26: -7120.458372 | O26: -7229.295529 | P26: -7302.561743 | Q26: -7396.619093 | R26: -7494.751754 | S26: -7521.876215 | T26: -7628.775805 | U26: -7739.78396 | V26: -7738.792456 | W26: -7833.774214 | X26: -7943.750947 | Y26: -8046.453981
A28: Cashflows | D28: =SUM(D24:D27) -> 574.1645535 | E28: =SUM(E24:E27) -> 3121.876654 | F28: 4638.501182 | G28: 5412.466341 | H28: 5791.234738 | I28: 7363.548458 | J28: 7323.935672 | K28: 7029.765159 | L28: 9143.352257 | M28: 8943.3184 | N28: 9280.099646 | O28: 9140.045173 | P28: 8798.66105 | Q28: 8711.406014 | R28: 8654.202774 | S28: 8762.920835 | T28: 8732.508855 | U28: 8743.738371 | V28: 8839.073515 | W28: 8794.33003 | X28: 8857.335555 | Y28: 8805.143075
A32: Discounted Cashflow | C32: =SUM(D32:Y32) -> 88631.76839 | D32: =D28*D7 -> 554.1355575 | E32: 2802.766493 | F32: 3873.828449 | G32: 4256.45258 | H32: 4344.483716 | I32: 5269.489802 | J32: 4999.658655 | K32: 4577.739388 | L32: 5679.761683 | M32: 5299.53505 | N32: 5245.73237 | O32: 4928.51686 | P32: 4525.836977 | Q32: 4274.496721 | R32: 4050.775866 | S32: 3912.681073 | T32: 3719.452443 | U32: 3552.642802 | V32: 3425.906846 | W32: 3251.516616 | X32: 3123.925946 | Y32: 2962.432501
A36: Closing DAV | D36: =DAV!M33/1000 -> 91688.13813 | E36: =DAV!N33/1000 -> 98065.02175 | F36: =DAV!O33/1000 -> 103223.3845 | G36: =DAV!P33/1000 -> 107607.1816 | H36: =DAV!Q33/1000 -> 111268.6952 | I36: =DAV!R33/1000 -> 112987.4977 | J36: =DAV!S33/1000 -> 114525.7754 | K36: =DAV!T33/1000 -> 116020.9962 | L36: =DAV!U33/1000 -> 115315.5807 | M36: =DAV!V33/1000 -> 114696.9686 | N36: =DAV!W33/1000 -> 113450.0646 | O36: =DAV!X33/1000 -> 112211.2684 | P36: =DAV!Y33/1000 -> 111216.4475 | Q36: =DAV!Z33/1000 -> 110196.0066 | R36: =DAV!AA33/1000 -> 109097.3786 | S36: =DAV!AB33/1000 -> 107821.3678 | T36: =DAV!AC33/1000 -> 106426.4822 | U36: =DAV!AD33/1000 -> 104865.6118 | V36: =DAV!AE33/1000 -> 103167.3343 | W36: =DAV!AF33/1000 -> 101376.5961 | X36: =DAV!AG33/1000 -> 99369.40588 | Y36: =DAV!AH33/1000 -> 97268.72791
A40: TRV | C40: =-C56 -> -120585.5096
A41: Discounted DAV2035 | C41: =Y36*Y8 -> 31953.74119
A42: Backsolve to 0 by running Macro Ctrl + q | C42: =SUM(C32:C41) -> 3.637978807e-11
A46: Condition 4.6.8 Calculating TRV
B48: Total Regulatory Value (TRV) | F48: =F58+F60 -> 140820.2878 | K48: =K58+K60 -> 141399.0887 | P48: =P58+P60 -> 127880.0376 | U48: =U58+U60 -> 112716.3507 | Y48: =Y58+Y60 -> 97268.72791
A52: Condition 4.6.9 Calculating Profile Adjustment
B54: Adjusted Cashflows | D54: =D28*(1+$F$6*$B$7)*(1+$F$6)^($F$12-D12) -> 688.4008714 | E54: =E28*(1+$F$6*$B$7)*(1+$F$6)^($F$12-E12) -> 3481.868056 | F54: =F28*(1+$F$6*$B$7)*(1+$F$6)^($F$12-F12) -> 4812.444976 | G54: =G28*(1+$K$6*$B$7)*(1+$K$6)^($K$12-G12) -> 6694.237574 | H54: =H28*(1+$K$6*$B$7)*(1+$K$6)^($K$12-H12) -> 6832.686512 | I54: =I28*(1+$K$6*$B$7)*(1+$K$6)^($K$12-I12) -> 8287.468489 | J54: =J28*(1+$K$6*$B$7)*(1+$K$6)^($K$12-J12) -> 7863.097779 | K54: =K28*(1+$K$6*$B$7)*(1+$K$6)^($K$12-K12) -> 7199.533987 | L54: =L28*(1+$P$6*$B$7)*(1+$P$6)^($P$12-L12) -> 11308.66566 | M54: =M28*(1+$P$6*$B$7)*(1+$P$6)^($P$12-M12) -> 10551.61701 | N54: =N28*(1+$P$6*$B$7)*(1+$P$6)^($P$12-N12) -> 10444.49342 | O54: =O28*(1+$P$6*$B$7)*(1+$P$6)^($P$12-O12) -> 9812.902806 | P54: =P28*(1+$P$6*$B$7)*(1+$P$6)^($P$12-P12) -> 9011.148715 | Q54: =Q28*(1+$U$6*$B$7)*(1+$U$6)^($U$12-Q12) -> 10774.42663 | R54: =R28*(1+$U$6*$B$7)*(1+$U$6)^($U$12-R12) -> 10210.50902 | S54: =S28*(1+$U$6*$B$7)*(1+$U$6)^($U$12-S12) -> 9862.423084 | T54: =T28*(1+$U$6*$B$7)*(1+$U$6)^($U$12-T12) -> 9375.365113 | U54: =U28*(1+$U$6*$B$7)*(1+$U$6)^($U$12-U12) -> 8954.899653 | V54: =V28*(1+$Y$6*$B$7)*(1+$Y$6)^($Y$12-V12) -> 10428.62552 | W54: =W28*(1+$Y$6*$B$7)*(1+$Y$6)^($Y$12-W12) -> 9897.773257 | X54: =X28*(1+$Y$6*$B$7)*(1+$Y$6)^($Y$12-X12) -> 9509.381111 | Y54: =Y28*(1+$Y$6*$B$7)*(1+$Y$6)^($Y$12-Y12) -> 9017.787281
B56: Closing TRV (Incl Return) | C56: ='Opening Values'!M15/1000 -> 120585.5096 | F56: =-$C$56*(1+F6)^(F12-C12) -> -149803.0017 | K56: =-F48*(1+K6)^(K12-F12) -> -178276.1131 | P56: =-K48*(1+P6)^(P12-K12) -> -179008.8652 | U56: =-P48*(1+U6)^(U12-P12) -> -161893.9742 | Y56: =-U48*(1+Y6)^(Y12-U12) -> -136122.2951
B58: DAV | F58: =F36 -> 103223.3845 | K58: =K36 -> 116020.9962 | P58: =P36 -> 111216.4475 | U58: =U36 -> 104865.6118 | Y58: =Y36 -> 97268.72791
B60: Calculated PA | F60: =-SUM(D54:F59) -> 37596.90334 | K60: =-SUM(G54:K59) -> 25378.09255 | P60: =-SUM(L54:P59) -> 16663.59012 | U60: =-SUM(Q54:U59) -> 7850.738885 | Y60: =-SUM(V54:Y59) -> -3.637978807e-10
B61: Check | F61: =SUM(D54:F60) -> 0 | K61: =SUM(G54:K60) -> 0 | P61: =SUM(L54:P60) -> 0 | U61: =SUM(Q54:U60) -> 0 | Y61: =SUM(V54:Y60) -> 0
